bitfinex/quotes_ETHUSD_20250804
["timestamp","ask_amount","ask_price","bid_price","bid_amount"]
[1754315990056,0.1376,3624.9,3624.5,3.23008982]
[1754315990290,0.1376,3624.9,3624.4,0.1376]
[1754315990513,2.89635352,3624.9,3624.4,0.1376]
[1754315990713,0.1376,3624.9,3624.4,0.1376]
[1754315990860,0.42722383,3624.9,3624.4,0.6087]
[1754315991489,0.42722383,3624.9,3624.4,0.1376]
[1754315991654,3.18594154,3624.9,3624.5,0.4711]
[1754315992058,0.42722383,3624.9,3624.4,2.89667278]
[1754315992294,0.1376,3624.9,3624.4,2.89667278]
[1754315992481,0.1376,3624.9,3624.5,0.4711]
[1754315992684,2.89635545,3624.9,3624.5,0.4711]
[1754315992992,0.55,3624.7,3623.5,0.4711]
[1754315993156,0.55,3624.5,3623.7,0.1376]
[1754315993362,0.1376,3624.6,3623.7,0.1376]
[1754315993363,2.75923032,3624.2,3623.7,0.1376]
[1754315993593,0.27592303,3624.2,3623.7,0.1376]
[1754315993808,0.27592303,3624.2,3623.3,0.4711]
[1754315994104,0.1376,3624.1,3623.9,2.75942632]
[1754315994255,0.1376,3624.1,3623.6,0.1376]
[1754315994460,0.1376,3624.1,3623.9,2.75944314]
[1754315994667,0.1376,3624.1,3623.7,0.4711]
[1754315994668,0.55,3624.7,3623.7,2.75958032]
[1754315995001,0.55,3624.2,3623.2,0.4711]
[1754315995162,0.1376,3623.7,3623.1,2.76005861]
[1754315995362,0.1376,3623.4,3623.1,2.76001836]
[1754315995589,2.75951694,3623.9,3623.2,3.23103398]
[1754315995792,0.9621,3624.3,3623.2,3.23103398]
[1754315995793,0.1376,3623.7,3623.3,2.75991188]
[1754315996093,0.1376,3623.7,3623.3,3.23099239]
[1754315996282,0.20621,3624.6,3623.4,1.4768]
[1754315996595,0.1376,3624.3,3623.9,2.75941437]
[1754315996792,0.1376,3624.3,3623.9,0.4711]
[1754315996963,0.1376,3624.3,3623.8,0.1376]
[1754315997164,0.1376,3624.3,3624.1,2.75924848]
[1754315997365,2.75885542,3624.7,3624.0,2.75932122]
[1754315997580,0.1376,3624.4,3623.8,0.6087]
[1754315997781,0.1376,3624.4,3624.0,2.75932238]
[1754315997990,0.1376,3624.4,3624.1,2.7592683]
[1754315998186,2.75869458,3625.0,3624.2,2.75918387]
[1754315998403,0.1376,3624.7,3624.2,0.1376]
[1754315998566,0.9621,3625.0,3623.9,7.4711]
[1754315998762,0.1376,3624.7,3624.1,2.89687634]
[1754315999104,0.1376,3624.7,3624.1,0.1376]
[1754315999262,0.1376,3624.7,3624.2,2.75920454]
[1754315999467,0.1376,3624.7,3624.1,0.1376]
[1754315999468,0.1376,3624.7,3624.3,2.75915228]
[1754315999794,0.1376,3624.7,3624.3,2.75912532]
[1754315999996,2.75852924,3625.2,3624.4,2.75901141]
[1754316000161,0.1376,3624.9,3624.4,3.36775678]
[1754316000360,0.1376,3624.9,3624.6,2.75892408]
[1754316000590,0.20097152,3625.3,3624.7,2.75880707]
[1754316000792,0.1376,3625.1,3624.5,0.4711]
[1754316000986,2.75813452,3625.7,3624.9,2.7586233]
[1754316001199,4.19010584,3625.9,3624.7,0.1376]
[1754316001200,0.1376,3625.2,3624.7,0.1376]
[1754316001499,0.1376,3625.3,3624.8,0.4617]
[1754316001667,0.1376,3625.3,3624.7,0.1376]
[1754316002064,2.75830982,3625.5,3625.1,0.1376]
[1754316002268,0.1376,3625.6,3625.0,0.1376]
[1754316002488,0.51170136,3626.0,3625.1,1.5396]
[1754316002700,1.64674,3626.8,3625.0,0.30532]
[1754316002701,1.64674,3626.8,3625.5,0.1376]
[1754316003008,0.1376,3626.2,3625.7,0.1376]
[1754316003206,1.64674,3626.8,3625.8,1.5396]
[1754316003378,1.64674,3626.8,3625.0,0.16772]
[1754316003379,1.64674,3626.8,3626.7,2.75732759]
[1754316003579,1.64674,3626.8,3626.7,4.43452759]
[1754316003790,1.64674,3626.8,3626.7,4.29692759]
[1754316004107,1.64674,3626.8,3626.7,5.00236241]
[1754316004108,1.17174,3626.8,3626.7,5.00236241]
[1754316004414,1.17174,3626.8,3625.6,5.19863829]
[1754316004613,43.96118791,3626.7,3625.6,5.19863829]
[1754316004812,2.75808809,3625.7,3625.6,5.19863829]
[1754316004968,3.30808809,3625.7,3625.6,5.19863829]
[1754316005170,4.90678809,3625.7,3625.6,5.19863829]
[1754316005364,7.90678809,3625.7,3625.6,5.19863829]
[1754316005570,2.75883049,3624.8,3623.8,1.5396]
[1754316005765,2.75862068,3625.0,3623.9,0.24953318]
[1754316006010,2.75869221,3625.0,3624.1,2.75929108]
[1754316006302,1.1264,3625.3,3624.2,0.24953318]
[1754316006303,0.55,3624.6,3624.2,0.24953318]
[1754316006468,2.75991199,3623.4,3622.7,0.20981046]
[1754316006669,0.02761515,3623.3,3622.7,0.20981046]
[1754316006901,1.5987,3623.7,3622.7,0.20981046]
[1754316006902,0.57761515,3623.6,3622.7,0.20981046]
[1754316007092,1.6764,3623.5,3622.7,0.20981046]
[1754316007296,0.55,3623.3,3622.7,0.20981046]
[1754316007479,3.30991744,3623.3,3622.7,0.20981046]
[1754316007815,0.55,3623.3,3622.6,5.36885867]
[1754316008106,0.55,3623.3,3618.1,1.31005332]
[1754316008107,0.55,3622.6,3621.3,0.4617]
[1754316008407,31.5987,3623.2,3622.0,2.76088171]
[1754316008408,0.55,3622.9,3622.0,2.76088171]
[1754316008591,1.5987,3623.2,3621.4,0.15396]
[1754316008592,0.55,3622.5,3621.4,0.15396]
[1754316008906,0.55,3622.3,3620.9,1.0799]
[1754316009273,3.31051477,3622.6,3621.7,2.76112865]
[1754316009491,3.31051477,3622.6,3620.6,2.78956622]
[1754316009492,0.55,3622.6,3620.6,2.78956622]
[1754316009830,0.4723,3623.6,3620.7,0.02761896]
[1754316009970,2.75976771,3623.5,3621.5,3.0]
[1754316010168,0.71180188,3623.5,3623.0,2.76014213]
[1754316010473,1.1264,3624.4,3623.7,2.75954102]
[1754316010768,1.1264,3625.2,3622.4,0.027606]
[1754316010969,2.75866892,3625.0,3622.5,2.76052449]
[1754316011169,0.02761515,3625.2,3623.9,2.75944716]
[1754316011366,1.5987,3624.9,3623.9,7.0]
[1754316011570,31.78618515,3624.8,3623.9,7.0]
[1754316011771,2.75938189,3624.0,3623.9,7.0]
[1754316012084,4.90808189,3624.0,3623.9,7.0]
[1754316012469,2.76044521,3622.7,3621.6,0.3]
[1754316012802,2.76089886,3622.1,3620.6,1.0779]
[1754316013118,1.5987,3622.0,3620.7,2.76189687]
[1754316013298,1.5987,3622.0,3621.6,2.76118279]
[1754316013617,1.5987,3621.9,3621.3,2.7614188]
[1754316013814,1.5987,3621.9,3621.5,2.76128649]
[1754316013974,1.5987,3621.9,3620.6,12.4617]
[1754316014177,0.1384,3621.5,3621.4,2.761363]
[1754316014380,1.1264,3621.8,3621.4,2.761363]
[1754316014381,0.1384,3621.7,3621.4,2.761363]
[1754316014608,0.4723,3622.2,3621.6,2.76116321]
[1754316014818,0.1384,3621.9,3621.4,0.1384]
[1754316015028,0.1384,3622.3,3622.0,2.7608474]
[1754316015181,0.1384,3622.3,3621.8,0.1384]
[1754316015182,0.1384,3622.3,3621.9,2.76091349]
[1754316015376,1.62631515,3622.2,3621.4,2.76134955]
[1754316015624,0.1384,3621.8,3621.6,2.76120869]
[1754316015791,0.1384,3621.8,3621.3,0.1384]
[1754316015992,0.1384,3621.8,3621.5,2.76122599]
[1754316016211,1.1264,3621.8,3621.5,2.76122257]
[1754316016517,1.1264,3621.8,3620.9,2.76174431]
[1754316016518,0.1384,3621.8,3621.6,2.76116799]
[1754316016877,0.1384,3621.8,3621.7,2.76113427]
[1754316017614,0.1384,3622.0,3621.8,2.76099793]
[1754316017817,0.1384,3622.0,3621.9,2.7609818]
[1754316018138,1.5987,3622.0,3621.4,2.76130283]
[1754316018286,1.5987,3622.0,3620.8,2.76182059]
[1754316018287,0.1384,3621.7,3621.6,2.76121051]
[1754316018698,2.76028071,3622.9,3621.6,1.63015506]
[1754316018909,0.1384,3622.2,3622.1,2.76080039]
[1754316019320,1.1264,3623.0,3622.1,2.76080039]
[1754316019321,3.88659962,3623.0,3622.1,2.76080039]
[1754316019623,0.1384,3622.4,3621.9,0.1384]
[1754316019779,2.75930858,3624.1,3622.1,2.76082935]
[1754316019780,0.4723,3623.9,3622.1,2.76082935]
[1754316019979,0.1376,3623.3,3623.1,2.76002248]
[1754316020223,0.829398,3624.2,3623.2,1.0779]
[1754316020385,0.1376,3624.1,3623.9,2.75942202]
[1754316020586,2.91866578,3624.8,3624.0,2.75938189]
[1754316020784,2.91866578,3624.8,3623.2,1.5396]
[1754316020785,0.1376,3624.3,3623.2,4.29956347]
[1754316020985,0.0876,3624.3,3623.8,0.1376]
[1754316021223,1.62631515,3624.2,3623.4,0.1376]
[1754316021436,0.02761515,3624.1,3622.6,1.0779]
[1754316021587,0.1376,3623.8,3623.2,0.1376]
[1754316021932,0.1376,3624.3,3623.6,0.1376]
[1754316022096,0.1376,3624.3,3623.9,2.75942514]
[1754316022430,0.1376,3624.3,3623.6,0.1376]
[1754316022431,2.75934194,3624.1,3623.6,0.1376]
[1754316022615,0.1376,3623.8,3623.1,0.1384]
[1754316022818,0.1376,3623.8,3623.4,2.75980044]
[1754316022982,0.1376,3623.8,3623.1,0.1384]
[1754316023189,0.1376,3623.8,3623.7,2.75961034]
[1754316023495,0.1376,3624.2,3623.8,2.75948227]
[1754316023708,0.1376,3624.0,3623.5,0.1376]
[1754316024018,1.1264,3624.6,3623.3,2.75986357]
[1754316024320,1.1264,3624.6,3623.7,2.89720071]
[1754316024321,0.1376,3624.3,3623.7,2.89720071]
[1754316024699,0.1376,3624.3,3624.1,2.75925974]
[1754316024897,0.15987,3624.8,3624.5,2.75893632]
[1754316025086,1.1264,3625.2,3624.5,2.75893221]
[1754316025287,1.1264,3625.2,3623.7,3.83747635]
[1754316025607,1.1264,3625.2,3623.7,1.0779]
[1754316025810,0.55,3625.0,3623.5,0.4617]
[1754316025988,0.55,3624.8,3624.1,2.75923268]
[1754316026183,0.33087169,3624.7,3623.5,0.4617]
[1754316026389,0.33087169,3624.7,3624.2,2.75917663]
[1754316026612,2.1487,3624.6,3623.3,1.0779]
[1754316026828,2.1487,3624.6,3623.4,2.75983882]
[1754316026986,2.1487,3624.6,3624.0,2.75932881]
[1754316027192,0.52384304,3624.5,3623.8,2.75952994]
[1754316027389,0.55,3624.3,3622.6,0.67163541]
[1754316027615,1.1264,3624.2,3622.7,2.76037209]
[1754316027954,2.75944575,3624.0,3622.7,2.76037209]
[1754316028129,2.75944575,3624.0,3622.0,2.76083517]
[1754316028130,3.55,3623.8,3622.0,0.4617]
[1754316028313,2.7600452,3623.2,3622.4,2.76054533]
[1754316028626,1.6764,3623.4,3622.7,2.76031947]
[1754316028788,1.1264,3623.4,3622.1,0.02760829]
[1754316028992,0.4723,3623.7,3622.1,2.78842172]
[1754316029244,1.1264,3623.9,3623.0,2.76011832]
[1754316029414,0.55,3623.7,3621.7,0.4617]
[1754316029594,0.55,3623.3,3621.8,2.76105803]
[1754316029807,1.62631515,3623.2,3622.1,2.7607982]
[1754316030118,2.76050121,3622.6,3621.4,0.4617]
[1754316030290,0.55,3622.9,3621.2,0.002]
[1754316030291,2.76072792,3622.3,3621.2,0.002]
[1754316030490,0.55,3622.4,3621.2,0.002]
[1754316030793,1.1264,3623.0,3621.6,0.6628]
[1754316031027,3.88655617,3623.0,3622.3,2.7606433]
[1754316031233,2.76050746,3622.6,3621.9,2.76096286]
[1754316031439,1.0949,3622.9,3622.4,2.76053743]
[1754316031600,1.0949,3622.9,3622.5,2.76048068]
[1754316031812,3.4349,3623.4,3621.9,4.528]
[1754316031813,1.0949,3623.3,3621.9,4.528]
[1754316032017,0.18059515,3623.2,3621.9,0.49699]
[1754316032246,1.67251515,3623.1,3621.9,4.528]
[1754316032447,2.76038077,3622.7,3622.0,2.76090259]
[1754316032620,3.31026861,3622.9,3622.2,2.76069019]
[1754316032802,0.55,3622.9,3622.3,2.76065586]
[1754316033012,1.0949,3623.0,3621.8,4.531]
[1754316033250,0.4359,3623.9,3622.8,2.76023431]
[1754316033418,2.759759,3623.6,3622.9,2.76015309]
[1754316033606,1.0949,3623.5,3622.6,4.53]
[1754316033927,0.001,3623.9,3622.6,4.53]
[1754316034240,0.001,3623.9,3623.8,2.75953419]
[1754316034440,2.75858057,3625.1,3623.8,2.75953419]
[1754316034441,2.75803763,3625.8,3625.0,2.75857773]
[1754316034766,1.0949,3626.2,3624.7,7.29284272]
[1754316035039,2.75778384,3626.1,3625.3,2.75838495]
[1754316035203,2.75787558,3626.0,3625.3,2.75838495]
[1754316035400,2.75801202,3625.8,3624.7,4.535]
[1754316035640,0.1376,3625.3,3624.8,0.1376]
[1754316035840,1.2325,3625.3,3624.8,0.1376]
[1754316036106,3.99091816,3625.3,3625.0,7.0]
[1754316036377,2.89614459,3625.1,3625.0,7.0]
[1754316036579,3.55,3625.0,3623.6,4.533]
[1754316036807,0.28961446,3625.0,3623.7,2.78714791]
[1754316036945,2.75806761,3625.8,3625.0,2.75855375]
[1754316037150,2.75806761,3625.8,3624.8,2.75877289]
[1754316037151,0.1376,3625.4,3624.9,0.1376]
[1754316037345,1.5298,3625.9,3624.8,4.535]
[1754316037576,0.1376,3625.3,3624.8,4.6726]
[1754316037776,0.1376,3625.0,3624.5,4.535]
[1754316037979,0.1376,3624.8,3624.6,2.75889919]
[1754316038177,0.1376,3624.8,3624.5,4.535]
[1754316038178,0.1376,3624.8,3624.5,7.29399757]
[1754316038481,0.1376,3624.8,3624.3,0.1376]
[1754316038683,0.55,3625.0,3624.3,4.535]
[1754316038866,0.55,3624.6,3624.3,4.535]
[1754316039067,0.1376,3624.4,3624.3,4.535]
[1754316039267,0.1376,3624.4,3623.8,4.535]
[1754316039579,0.1376,3624.0,3623.5,4.535]
[1754316039778,2.75938447,3624.0,3623.5,4.535]
[1754316039998,0.55,3624.6,3623.0,2.76014166]
[1754316039999,2.75953419,3623.8,3623.4,4.6706]
[1754316040204,2.75953419,3623.8,3621.9,6.627]
[1754316040205,2.76006411,3623.2,3621.9,6.627]
[1754316040497,2.75978373,3623.5,3622.0,7.29685015]
[1754316040651,0.55,3623.3,3622.1,4.536]
[1754316040848,3.31008109,3623.1,3622.1,7.29682541]
[1754316041194,2.76021971,3622.9,3622.2,4.536]
[1754316041504,0.02761515,3622.8,3622.2,7.0]
[1754316041644,0.55,3622.5,3622.2,7.0]
[1754316042048,1.0949,3623.0,3622.2,7.0]
[1754316042277,1.0949,3623.0,3621.6,4.9799]
[1754316042499,1.0949,3623.0,3621.7,0.54778]
[1754316042674,2.76000348,3623.2,3622.4,2.76054432]
[1754316042849,0.55,3623.2,3622.5,2.76051817]
[1754316043050,0.55,3623.2,3622.3,4.535]
[1754316043285,2.76007882,3623.1,3622.3,4.535]
[1754316043601,0.55,3623.4,3622.7,2.76030395]
[1754316043902,3.30985138,3623.4,3622.6,2.7604313]
[1754316044098,2.75991499,3623.3,3622.3,4.535]
[1754316044397,0.55,3623.0,3621.9,2.76097659]
[1754316044597,0.55,3623.0,3622.1,4.535]
[1754316044896,0.55,3623.0,3622.2,2.76075313]
[1754316045201,0.55,3623.5,3621.7,0.54778]
[1754316045350,2.75996732,3623.3,3621.9,2.7609818]
[1754316045556,0.55,3623.1,3622.0,0.4419]
[1754316045755,0.55,3623.1,3622.4,2.76053069]
[1754316045950,0.55,3623.1,3622.1,4.533]
[1754316046186,0.48398139,3623.0,3622.4,2.76058508]
[1754316046366,0.48398139,3623.0,3622.3,2.76065409]
[1754316046570,0.48398139,3623.0,3622.3,2.76067691]
[1754316046886,0.55,3623.1,3622.2,2.76075313]
[1754316047064,3.31007652,3623.1,3622.1,7.29079352]
[1754316047267,2.76015709,3623.0,3622.2,4.529]
[1754316047475,0.55,3623.1,3622.4,2.76058341]
[1754316047661,0.55,3623.1,3622.2,4.529]
[1754316047860,0.76074152,3623.1,3622.3,2.76060133]
[1754316048164,0.76074152,3623.1,3622.4,2.76055165]
[1754316048364,0.76074152,3623.1,3622.2,4.529]
[1754316048564,0.55,3623.1,3622.2,4.529]
[1754316048758,1.0949,3623.2,3622.3,2.76067691]
[1754316048988,1.0949,3623.2,3622.5,2.76051825]
[1754316049365,0.55,3623.1,3622.2,7.2897256]
[1754316049562,0.57761515,3623.1,3622.3,4.527]
[1754316049763,0.55,3622.9,3622.4,2.7606007]
[1754316050075,2.75988666,3623.4,3622.3,4.527]
[1754316050076,1.0949,3622.8,3622.3,4.527]
[1754316050253,0.55,3623.1,3622.3,4.527]
[1754316050452,0.1384,3622.7,3622.3,4.9689]
[1754316050678,0.1384,3622.7,3622.4,2.7606007]
[1754316050998,1.5298,3623.5,3622.6,2.76044829]
[1754316051162,0.1384,3622.8,3622.3,4.9689]
[1754316051496,0.1384,3623.0,3622.8,2.76028432]
[1754316051690,0.1384,3623.0,3622.9,2.76021971]
[1754316052060,0.1384,3623.0,3622.8,2.76027818]
[1754316052261,1.0949,3623.5,3622.5,0.5803]
[1754316052482,0.1384,3623.1,3622.6,4.518]
[1754316052671,1.0949,3623.0,3622.6,2.76044078]
[1754316052873,0.1384,3623.1,3622.5,0.1384]
[1754316053070,0.1384,3623.1,3622.5,4.6554]
[1754316053271,1.25939,3623.4,3622.7,2.76037107]
[1754316053463,0.1384,3622.9,3622.6,2.76042949]
[1754316053792,0.1384,3622.9,3622.5,4.517]
[1754316053995,1.0949,3622.9,3622.5,4.516]
[1754316054293,0.1384,3622.7,3622.6,2.76044829]
[1754316055396,1.0959,3623.8,3622.6,3.29438123]
[1754316055581,1.0959,3623.8,3623.3,2.75991439]
[1754316055893,0.55,3623.7,3623.3,2.75991439]
[1754316056054,0.1376,3623.4,3623.1,7.27304542]
[1754316056255,0.1376,3623.4,3623.1,4.513]
[1754316056458,0.001,3623.8,3623.7,2.75961034]
[1754316056688,0.001,3623.8,3623.7,7.27161034]
[1754316056891,1e-08,3623.8,3623.7,7.76951034]
[1754316057095,1e-08,3623.8,3623.7,8.21141034]
[1754316057592,1e-08,3623.8,3623.7,11.21141034]
[1754316057793,1e-08,3623.8,3623.7,12.6296809]
[1754316060206,1e-08,3623.8,3623.7,12.7377809]
[1754316060362,1.0949,3626.4,3624.4,2.75904214]
[1754316060698,0.02761515,3626.3,3624.7,2.758849]
[1754316060875,1.0949,3626.4,3624.5,4.513]
[1754316060876,1.0949,3626.4,3625.8,2.75801202]
[1754316061194,1.0949,3626.4,3625.8,7.28001202]
[1754316061396,1.0962,3625.9,3625.8,7.0]
[1754316061697,4.71143377,3625.9,3625.8,7.0]
[1754316061860,5.26143377,3625.9,3625.8,7.0]
[1754316062063,2.03159781,3625.9,3625.8,7.0]
[1754316062283,0.004,3625.9,3625.8,7.0]
[1754316062499,1.5681,3625.9,3625.8,7.0]
[1754316063194,4.32603596,3625.9,3625.8,7.0]
[1754316063501,1.0962,3625.9,3625.8,7.0]
[1754316064069,1.0962,3625.9,3625.5,4.52]
[1754316064399,0.004,3625.9,3625.5,4.52]
[1754316064603,0.004,3625.9,3625.8,2.75801202]
[1754316064960,0.004,3625.9,3625.8,7.72361202]
[1754316065163,0.004,3625.9,3625.8,8.18801202]
[1754316066099,1.17174,3626.8,3626.7,2.75732759]
[1754316066278,1.17174,3626.8,3626.7,7.28532759]
[1754316066775,1.17174,3626.8,3626.4,2.7575406]
[1754316066980,1.17174,3626.8,3626.5,4.532]
[1754316066981,2.78494362,3626.7,3626.5,4.532]
[1754316067176,1.17174,3626.8,3626.5,4.532]
[1754316067375,2.26394,3626.8,3626.5,7.28947527]
[1754316067577,2.26394,3626.8,3626.4,7.1376]
[1754316067578,4.32149008,3626.7,3626.6,4.533]
[1754316067776,1.0922,3626.7,3626.6,4.533]
[1754316068102,1.17174,3626.8,3626.7,2.75732759]
[1754316068597,1.17174,3626.8,3626.7,7.29232759]
[1754316068802,1.17174,3626.8,3626.7,4.535]
[1754316069409,2.26394,3626.8,3626.7,4.533]
[1754316069612,5.02119157,3626.8,3626.7,4.533]
[1754316069822,5.02119157,3626.8,3626.7,4.532]
[1754316070189,3.53019229,3626.8,3626.2,0.1376]
[1754316070513,3.30763174,3626.3,3626.2,0.1376]
[1754316070713,2.75763174,3626.3,3626.2,0.1376]
[1754316070913,4.32173174,3626.3,3626.2,0.1376]
[1754316071078,2.7578599,3626.0,3625.9,5.33070916]
[1754316071409,1.7017,3626.0,3625.9,5.33070916]
[1754316071618,1.17174,3626.8,3626.4,2.75753891]
[1754316071781,1.17174,3626.8,3626.7,2.75732759]
[1754316073178,1.17174,3626.8,3626.5,7.28746621]
[1754316073179,1.17174,3626.8,3626.5,7.28743575]
[1754316073314,1.17174,3626.8,3626.7,2.75732759]
[1754316073509,1.17174,3626.8,3626.6,2.75740091]
[1754316073708,1.17174,3626.8,3626.7,7.29032759]
[1754316073908,1.17174,3626.8,3626.7,4.532]
[1754316074111,2.26394,3626.8,3626.7,4.532]
[1754316074311,2.490334,3626.8,3626.7,4.531]
[1754316074512,1.17174,3626.8,3626.7,4.531]
[1754316074928,1.17174,3626.8,3625.9,8.08860648]
[1754316075130,1.17174,3626.8,3625.9,5.33070916]
[1754316075131,2.26394,3626.8,3625.9,5.33070916]
[1754316075329,3.30740362,3626.6,3625.9,5.33070916]
[1754316075493,31.5641,3626.5,3625.9,5.33070916]
[1754316075826,1.0922,3626.4,3625.9,5.33070916]
[1754316076045,2.75773172,3626.2,3626.0,4.534]
[1754316076204,4.32193327,3626.1,3624.6,0.8985]
[1754316076408,0.02761515,3626.0,3625.4,2.75825944]
[1754316076732,1.17174,3626.8,3625.5,4.535]
[1754316077034,1.17174,3626.8,3624.4,6.628]
[1754316077035,3.92901836,3626.8,3626.1,2.757733]
[1754316077352,0.02761515,3626.7,3626.2,4.543]
[1754316077633,1.0922,3626.6,3626.2,4.543]
[1754316077840,1.0922,3626.5,3626.2,4.543]
[1754316078008,5.30379985,3626.4,3625.5,4.553]
[1754316078341,1.0922,3626.3,3626.0,2.75779909]
[1754316078541,2.26394,3626.8,3625.9,4.552]
[1754316079005,1.17174,3626.8,3626.5,2.7574252]
[1754316079196,1.17174,3626.8,3626.6,2.75735649]
[1754316079396,1.17174,3626.8,3626.7,2.75732759]
[1754316079807,1.17174,3626.8,3626.7,4.62288102]
[1754316080418,1e-08,3626.8,3626.7,7.62288102]
[1754316080624,1e-08,3626.8,3626.7,7.97162865]
[1754316081237,1e-08,3626.8,3626.7,7.62288102]
[1754316081440,1e-08,3626.8,3626.7,7.97162865]
[1754316081642,1e-08,3626.8,3626.7,8.10922865]
[1754316082005,1e-08,3626.8,3626.7,12.66522865]
[1754316082641,1e-08,3626.8,3626.7,12.31648102]
[1754316082945,1e-08,3626.8,3626.7,12.31348102]
[1754316083173,1e-08,3626.8,3626.7,4.6896]
[1754316083652,1e-08,3626.8,3626.7,0.1376]
[1754316084022,2.75725158,3626.8,3626.7,4.6876]
[1754316084369,1e-08,3626.8,3626.7,0.1376]
[1754316084506,1e-08,3626.8,3626.7,4.6876]
[1754316085157,1e-08,3626.8,3626.7,8.62703396]
[1754316085455,1e-08,3626.8,3626.7,5.43210637]
[1754316085673,1e-08,3626.8,3626.7,0.1376]
[1754316085861,2.75725158,3626.8,3626.7,0.1376]
[1754316086140,3.84945158,3626.8,3626.7,0.1376]
[1754316086439,4.45895158,3626.8,3626.7,4.549]
[1754316086599,4.45895158,3626.8,3626.7,7.0]
[1754316086804,5.1805619,3626.8,3626.7,7.0]
[1754316087402,2.75725158,3626.8,3626.7,7.0]
[1754316087608,1e-08,3626.8,3626.7,7.0]
[1754316087809,2.75725158,3626.8,3626.7,7.0]
[1754316088007,4.32135158,3626.8,3626.7,11.547]
[1754316088242,4.32135158,3626.8,3626.7,7.0]
[1754316088444,3.46510292,3626.8,3626.7,11.546]
[1754316088629,1e-08,3626.8,3626.7,11.546]
[1754316088829,2.75725158,3626.8,3626.7,11.546]
[1754316089030,2.75725158,3626.8,3626.7,7.0]
[1754316089217,3.84945158,3626.8,3626.7,11.548]
[1754316089415,3.84945158,3626.8,3626.7,7.0]
[1754316089661,4.32135158,3626.8,3626.7,11.546]
[1754316089835,5.02920296,3626.8,3626.7,11.546]
[1754316090563,3.84945158,3626.8,3626.7,11.546]
[1754316091624,3.84945158,3626.8,3626.7,4.546]
[1754316092323,4.29665158,3626.8,3626.7,4.546]
[1754316092822,2.75770779,3626.2,3626.1,6.624]
[1754316093017,2.75770779,3626.2,3626.1,4.54]
[1754316093453,3.82650779,3626.2,3626.1,4.54]
[1754316093832,2.75770779,3626.2,3626.1,4.54]
[1754316094457,3.82650779,3626.2,3626.1,4.54]
[1754316094844,0.44720001,3626.8,3626.1,4.54]
[1754316095158,2.75770779,3626.2,3625.5,0.20405867]
[1754316095333,2.75770779,3626.2,3625.6,4.534]
[1754316095534,2.75781132,3626.1,3625.6,4.534]
[1754316095811,2.7579856,3625.9,3625.6,3.1549]
[1754316095986,2.75787193,3626.0,3625.6,3.1549]
[1754316096186,2.75780448,3626.1,3625.6,3.1549]
[1754316096420,2.75784955,3626.1,3625.6,3.1549]
[1754316097116,2.75792444,3626.0,3625.6,3.51714708]
[1754316097526,2.75792444,3626.0,3625.9,0.1376]
[1754316097830,2.75779603,3626.1,3625.9,4.6686]
[1754316097999,2.75772383,3626.2,3625.9,4.531]
[1754316098202,2.75772383,3626.2,3626.0,0.1376]
[1754316098502,2.75764815,3626.3,3626.0,7.1376]
[1754316098696,2.75760171,3626.4,3626.0,7.1376]
[1754316099027,2.7575189,3626.5,3626.2,0.1376]
[1754316099226,2.7575557,3626.4,3626.3,4.522]
[1754316099721,3.8263557,3626.4,3626.3,4.522]
[1754316100322,2.7575557,3626.4,3626.3,4.522]
[1754316100619,0.13760001,3626.8,3626.3,4.522]
[1754316100834,1e-08,3626.8,3626.3,4.522]
[1754316101128,3.82613475,3626.7,3626.3,3.2805]
[1754316101325,2.75747966,3626.5,3626.4,0.1376]
[1754316101525,2.75740973,3626.6,3626.4,0.1376]
[1754316101986,2.75726411,3626.8,3626.4,0.1376]
[1754316101987,1e-08,3626.8,3626.4,0.1376]
[1754316102388,2.75730536,3626.8,3626.7,0.1376]
[1754316102622,1e-08,3626.8,3626.7,0.1376]
[1754316102811,2.75725158,3626.8,3626.7,0.1376]
[1754316102989,1e-08,3626.8,3626.7,0.1376]
[1754316103390,1e-08,3626.8,3626.7,4.54174112]
[1754316103585,1e-08,3626.8,3626.7,1.78441353]
[1754316103838,1e-08,3626.8,3626.7,0.87831353]
[1754316104014,1e-08,3626.8,3626.7,0.1376]
[1754316104390,1.06880001,3626.8,3626.7,0.1376]
[1754316104591,1e-08,3626.8,3626.7,2.89492759]
[1754316104922,1e-08,3626.8,3626.7,3.35042759]
[1754316105293,1e-08,3626.8,3626.7,3.80102759]
[1754316105489,1e-08,3626.8,3626.7,4.9080719]
[1754316106490,1e-08,3626.8,3626.7,4.4574719]
[1754316106727,0.00854353,3627.3,3626.9,2.75717554]
[1754316106891,0.00854353,3627.3,3627.0,4.507]
[1754316107235,1.516,3627.2,3627.1,4.505]
[1754316107528,4.2729475,3627.2,3627.1,4.505]
[1754316108021,0.00854353,3627.3,3627.1,4.505]
[1754316108324,0.00854353,3627.3,3627.2,2.7569475]
[1754316108496,0.00854353,3627.3,3627.2,2.8945475]
[1754316108696,0.00854353,3627.3,3627.2,3.74176787]
[1754316109014,0.00854353,3627.3,3627.2,4.19726787]
[1754316109215,0.00854353,3627.3,3627.2,4.22483734]
[1754316109428,0.00854353,3627.3,3627.2,0.98482037]
[1754316109631,0.00854353,3627.3,3627.2,3.74176787]
[1754316109928,0.00854353,3627.3,3627.2,4.67543734]
[1754316110117,0.00854353,3627.3,3627.2,4.64786787]
[1754316111427,0.00854353,3627.3,3627.2,3.74176787]
[1754316111727,0.00854353,3627.3,3627.2,4.64786787]
[1754316111889,0.00854353,3627.3,3627.2,4.67543734]
[1754316112095,0.00854353,3627.3,3627.2,4.64786787]
[1754316112315,0.00854353,3627.3,3627.2,8.69226787]
[1754316112917,0.00854353,3627.3,3627.2,9.14286787]
[1754316113113,0.00854353,3627.3,3627.2,4.19726787]
[1754316113329,0.00854353,3627.3,3627.2,8.69026787]
[1754316113628,0.00854353,3627.3,3627.2,8.68926787]
[1754316113926,0.00854353,3627.3,3627.2,8.23276787]